bitfinex/quotes_SOLUSD_20250601
["timestamp","ask_amount","ask_price","bid_price","bid_amount"]
[1748810097869,12.65952851,155.85,155.81,6.41807329]
[1748810099190,19.76149737,155.85,155.81,6.41807329]
[1748810102275,163.99796236,155.87,155.81,42.22475389]
[1748810102480,19.76149737,155.86,155.81,42.22475389]
[1748810103397,19.76149737,155.84,155.81,6.41807329]
[1748810103588,19.76149737,155.83,155.81,6.41807329]
[1748810104093,19.76149737,155.84,155.81,6.41807329]
[1748810104796,19.76149737,155.84,155.8,6.41848523]
[1748810105175,19.76149737,155.84,155.8,26.1799826]
[1748810105376,163.99796236,155.87,155.85,18.64964886]
[1748810105377,15.09796236,155.87,155.85,18.64964886]
[1748810105592,156.55909363,155.96,155.87,18.64964886]
[1748810105593,149.7939067,155.96,155.87,18.64964886]
[1748810105892,0.8939067,155.96,155.94,19.76149737]
[1748810106098,0.8939067,155.96,155.95,10.02]
[1748810106590,0.8939067,155.96,155.95,36.193809]
[1748810106767,0.8939067,155.96,155.95,16.43231163]
[1748810107893,0.8939067,155.96,155.95,19.58588269]
[1748810108093,0.8939067,155.96,155.95,10.02]
[1748810118082,20.65540407,155.96,155.95,10.02]
[1748810120391,0.8939067,155.96,155.95,10.02]
[1748810120587,20.65540407,155.96,155.95,10.02]
[1748810121288,0.8939067,155.96,155.95,10.02]
[1748810121605,0.8939067,155.96,155.95,16.43231163]
[1748810121906,0.8939067,155.96,155.95,10.02]
[1748810124786,0.8939067,155.96,155.95,16.43231163]
[1748810126394,0.8939067,155.96,155.95,10.02]
[1748810126995,0.8939067,155.96,155.95,16.43231163]
[1748810127786,0.8939067,155.96,155.95,36.193809]
[1748810129914,0.8939067,155.96,155.95,16.43231163]
[1748810131426,0.8939067,155.96,155.95,16.93231163]
[1748810133301,0.8939067,155.96,155.95,36.693809]
[1748810135094,0.8939067,155.96,155.95,42.930209]
[1748810135296,48.15259652,156.13,155.96,18.64964886]
[1748810135297,6.4061499,156.1,155.96,18.64964886]
[1748810135502,19.76149737,156.09,156.04,19.76149737]
[1748810135716,19.76149737,156.07,156.02,10.04]
[1748810135895,19.76149737,156.05,156.01,10.04]
[1748810136321,19.76149737,156.04,156.01,10.04]
[1748810136497,26.0,156.07,156.01,10.04]
[1748810136498,19.76149737,156.02,156.01,10.04]
[1748810137126,19.76149737,156.02,155.97,10.64]
[1748810137306,19.76149737,156.01,155.97,30.40149737]
[1748810137907,19.76149737,156.02,155.97,30.40149737]
[1748810138406,19.76149737,156.02,155.98,6.41107834]
[1748810141513,19.76149737,156.02,155.99,0.5]
[1748810141710,26.0,156.03,155.99,0.5]
[1748810142030,19.76149737,156.02,155.99,0.5]
[1748810142403,26.0,156.03,156.0,6.41025641]
[1748810142603,19.76149737,156.02,156.0,6.41025641]
[1748810142801,19.76149737,156.01,155.99,6.91064597]
[1748810143001,19.76149737,156.01,155.99,6.41064597]
[1748810144729,19.76149737,156.02,155.98,6.41107834]
[1748810145329,148.9,156.04,155.99,19.76149737]
[1748810145508,148.9,156.04,156.0,19.76149737]
[1748810146030,148.9,156.04,156.01,19.76149737]
[1748810146223,148.9,156.04,156.02,19.76149737]
[1748810146818,148.9,156.04,156.03,6.4090239]
[1748810147021,1.5829,156.09,156.03,6.4090239]
[1748810147228,19.76149737,156.07,156.03,6.4090239]
[1748810147618,19.76149737,156.07,156.03,26.17052127]
[1748810148851,19.76149737,156.07,156.03,6.4090239]
[1748810150347,19.76149737,156.06,156.03,6.4090239]
[1748810151844,19.76149737,156.05,156.01,6.40984552]
[1748810156326,19.76149737,156.05,156.01,26.17134289]
[1748810156527,19.76149737,156.05,156.02,0.5]
[1748810158144,148.9,156.06,156.03,6.4090239]
[1748810158145,168.66149737,156.06,156.03,6.4090239]
[1748810158862,19.76149737,156.05,156.02,6.40940743]
[1748810160561,19.76149737,156.04,156.01,10.64]
[1748810160728,19.76149737,156.03,156.01,17.04984552]
[1748810161156,19.76149737,156.04,156.01,17.04984552]
[1748810162841,148.9,156.06,156.01,36.81134289]
[1748810163147,19.76149737,156.05,156.01,36.81134289]
[1748810163854,19.76149737,156.05,156.01,17.04984552]
[1748810164051,148.9,156.06,156.02,19.76149737]
[1748810164255,148.9,156.06,156.03,19.76149737]
[1748810164439,148.9,156.06,156.05,19.76149737]
[1748810164834,148.9,156.06,156.05,26.16969986]
[1748810165565,19.76149737,156.1,156.05,26.16969986]
[1748810165876,19.76149737,156.1,156.06,19.76149737]
[1748810166157,45.76149737,156.08,155.96,22.44163429]
[1748810166342,26.0,156.06,155.98,19.76149737]
[1748810166665,19.76149737,156.03,155.98,19.76149737]
[1748810166858,19.76149737,156.03,155.98,26.17217422]
[1748810167471,6.40825163,156.05,155.98,26.17217422]
[1748810167780,19.76149737,156.03,155.98,26.17217422]
[1748810168067,19.76149737,156.04,155.99,19.76149737]
[1748810169074,19.76149737,156.04,156.0,6.41025641]
[1748810169570,19.76149737,156.04,156.0,16.99025641]
[1748810169870,19.76149737,156.04,156.0,36.75175378]
[1748810170665,19.76149737,156.05,156.0,36.75175378]
[1748810171462,19.76149737,156.04,156.0,36.75175378]
[1748810171665,19.76149737,156.04,156.0,16.99025641]
[1748810173836,148.9,156.06,156.0,16.99025641]
[1748810174267,19.76149737,156.04,156.0,16.99025641]
[1748810177450,148.9,156.06,156.0,36.75175378]
[1748810177649,168.66149737,156.06,156.02,6.40943468]
[1748810177856,148.9,156.06,156.02,6.40943468]
[1748810178061,168.66149737,156.06,156.02,6.40943468]
[1748810178249,148.9,156.06,156.02,6.40943468]
[1748810178450,19.76149737,156.05,156.02,6.40943468]
[1748810181742,168.66149737,156.06,156.02,6.40943468]
[1748810183158,19.76149737,156.05,156.02,6.40943468]
[1748810183560,19.76149737,156.05,156.01,6.40970677]
[1748810184073,19.76149737,156.05,156.01,26.17120414]
[1748810184373,168.66149737,156.06,156.03,6.4090239]
[1748810184575,148.9,156.06,156.03,6.4090239]
[1748810184763,168.66149737,156.06,156.03,6.4090239]
[1748810185164,168.66149737,156.06,156.04,19.76149737]
[1748810185165,148.9,156.06,156.04,19.76149737]
[1748810185474,19.76149737,156.09,156.04,19.76149737]
[1748810186379,19.76149737,156.09,156.05,6.40820249]
[1748810187851,19.76149737,156.08,156.03,6.4090239]
[1748810188178,19.76149737,156.08,156.04,19.76149737]
[1748810188889,19.76149737,156.08,156.04,26.16982819]
[1748810190867,19.76149737,156.08,156.03,26.17052127]
[1748810192771,19.76149737,156.08,156.04,16.968256]
[1748810193775,45.76149737,156.05,155.98,6.41107834]
[1748810193984,19.76149737,156.02,155.98,16.97107834]
[1748810197961,19.76149737,156.02,155.98,10.56]
[1748810198373,19.76149737,156.02,155.98,16.97098557]
[1748810202186,19.76149737,156.02,155.98,10.56]
[1748810202187,19.76149737,156.0,155.98,10.56]
[1748810202578,155.30967727,156.02,155.98,10.56]
[1748810202579,19.76149737,156.01,155.98,10.56]
[1748810202889,148.9,156.02,155.98,16.9710615]
[1748810202890,168.66149737,156.02,155.98,16.9710615]
[1748810203686,168.66149737,156.02,155.98,36.73255887]
[1748810204065,148.9,156.02,155.98,36.73255887]
[1748810204591,148.9,156.02,155.99,19.76149737]
[1748810206293,148.9,156.02,156.0,6.41025641]
[1748810208993,148.9,156.08,156.01,38.41114623]
[1748810209180,19.76149737,156.09,156.04,19.76149737]
[1748810209370,1.5084,156.11,156.03,18.64964886]
[1748810209371,19.76149737,156.1,156.05,70.12149737]
[1748810209989,19.76149737,156.09,156.05,70.12149737]
[1748810210778,19.76149737,156.09,156.06,6.40779187]
[1748810215495,1.5084,156.11,156.06,6.40779187]
[1748810215496,21.26989737,156.11,156.06,42.18876892]
[1748810216085,19.76149737,156.1,156.06,42.18876892]
[1748810218593,1.5084,156.11,156.06,42.18876892]
[1748810218791,19.76149737,156.1,156.06,42.18876892]
[1748810220375,174.9,156.12,156.08,6.40697078]
[1748810220583,194.66149737,156.12,156.08,6.40697078]
[1748810221291,19.76149737,156.11,156.08,6.40697078]
[1748810222501,174.9,156.12,156.08,26.16846815]
[1748810222683,194.66149737,156.12,156.08,26.16846815]
[1748810222881,194.66149737,156.12,156.08,6.40697078]
[1748810223977,148.9,156.12,156.09,19.76149737]
[1748810224274,148.9,156.16,156.11,19.76149737]
[1748810224496,148.9,156.16,156.13,26.16627653]
[1748810225293,148.9,156.16,156.13,29.35244297]
[1748810225694,148.9,156.16,156.13,22.94766381]
[1748810225892,168.66149737,156.16,156.13,3.18616644]
[1748810226078,168.66149737,156.16,156.12,50.22]
[1748810228290,19.76149737,156.13,156.12,10.52]
[1748810231199,26.16641634,156.13,156.12,10.52]
[1748810232195,19.76149737,156.13,156.12,10.52]
[1748810232608,26.16642099,156.13,156.08,36.58839076]
[1748810232803,19.76149737,156.12,156.08,36.58839076]
[1748810233010,19.76149737,156.12,156.08,39.79667734]
[1748810235010,19.76149737,156.13,156.09,19.76149737]
[1748810236433,19.76149737,156.12,156.08,39.79667734]
[1748810236792,19.76149737,156.12,156.08,20.03517997]
[1748810237107,19.76149737,156.12,156.08,39.79667734]
[1748810239490,19.76149737,156.12,156.08,20.03517997]
[1748810241912,19.76149737,156.12,156.08,39.79667734]
[1748810242104,6.40465448,156.14,156.08,39.79667734]
[1748810242310,19.76149737,156.12,156.08,20.03517997]
[1748810242509,19.76149737,156.12,156.08,39.79667734]
[1748810243488,19.76149737,156.11,156.08,10.42]
[1748810244705,19.76149737,156.11,156.08,16.82694069]
[1748810245892,19.76149737,156.11,156.07,19.76149737]
[1748810245893,65.52299474,156.09,156.03,3.18704029]
[1748810246102,19.76149737,156.05,156.03,3.18704029]
[1748810246304,19.76149737,156.06,156.01,6.40955125]
[1748810248023,19.76149737,156.05,156.0,26.17175378]
[1748810249216,19.76149737,156.05,155.99,38.41114623]
[1748810249217,19.76149737,156.04,155.99,38.41114623]
[1748810249419,6.40833446,156.05,155.97,18.64964886]
[1748810249420,19.76149737,156.01,155.97,18.64964886]
[1748810249796,19.76149737,156.0,155.96,10.42]
[1748810250007,27.6123,156.03,155.96,10.42]
[1748810250008,19.76149737,155.98,155.96,10.42]
[1748810250215,19.76149737,156.01,155.96,36.59330193]
[1748810250603,19.76149737,156.01,155.96,30.18149737]
[1748810250808,19.76149737,156.0,155.96,10.42]
[1748810251404,19.76149737,155.99,155.96,16.83188924]
[1748810253225,19.76149737,155.98,155.96,10.42]
[1748810254520,148.9,156.02,155.96,16.83184724]
[1748810254521,19.76149737,155.99,155.96,16.83184724]
[1748810254922,19.76149737,155.98,155.96,16.83184724]
[1748810255525,155.30951111,156.02,155.96,16.83184724]
[1748810255703,19.76149737,155.98,155.96,16.83184724]
[1748810256714,19.76149737,155.98,155.96,10.42]
[1748810259635,19.76149737,155.98,155.96,16.8316751]
[1748810260923,19.76149737,155.98,155.96,10.42]
[1748810261132,19.76149737,155.98,155.96,16.83175644]
[1748810261332,19.76149737,155.99,155.96,16.83175644]
[1748810262512,19.76149737,155.98,155.96,16.83175644]
[1748810263417,19.76149737,155.98,155.96,10.42]
[1748810263838,19.76149737,155.98,155.96,16.83172408]
[1748810264333,155.30949914,156.02,155.96,16.83172408]
[1748810264543,19.76149737,155.98,155.96,16.83172408]
[1748810265250,19.76149737,155.99,155.96,16.83172408]
[1748810265726,19.76149737,155.98,155.96,16.83172408]
[1748810266474,19.76149737,156.0,155.96,36.59322145]
[1748810267017,19.76149737,156.0,155.96,16.83172408]
[1748810270031,19.76149737,155.99,155.96,16.83172408]
[1748810278358,19.76149737,155.99,155.96,6.41172408]
[1748810279755,19.76149737,155.98,155.96,6.41172408]
[1748810280056,19.76149737,155.97,155.95,23.13689053]
[1748810280257,19.76149737,155.96,155.95,23.13689053]
[1748810280556,19.76149737,155.97,155.95,23.13689053]
[1748810282143,19.76149737,155.98,155.95,23.13689053]
[1748810282346,168.66149737,155.99,155.95,23.13689053]
[1748810288255,19.76149737,155.98,155.95,23.13689053]
[1748810288664,148.9,155.99,155.95,16.72468143]
[1748810288869,19.76149737,155.96,155.95,16.72468143]
[1748810289051,19.76149737,155.96,155.95,6.40468143]
[1748810289248,12.62915159,155.96,155.95,6.40468143]
[1748810291265,19.73376263,155.96,155.95,6.40468143]
[1748810291469,19.73376263,155.96,155.95,12.81699306]
[1748810293356,19.73376263,155.97,155.95,12.81699306]
[1748810295355,148.9,155.99,155.95,12.81699306]
[1748810295560,148.9,155.99,155.95,32.55075569]
[1748810295871,148.9,155.99,155.95,48.58153478]
[1748810298353,148.9,155.99,155.95,58.80153478]
[1748810301063,168.63376263,155.99,155.95,58.80153478]
[1748810301272,168.63376263,155.99,155.95,39.06777215]
[1748810302265,19.73376263,155.98,155.95,39.06777215]
[1748810302466,19.73376263,155.96,155.95,6.40468143]
[1748810304750,194.57072017,155.99,155.95,6.40468143]
[1748810304966,19.73376263,155.96,155.95,6.40468143]
[1748810315183,12.63344489,155.96,155.95,6.40468143]
[1748810319283,19.73721183,155.96,155.95,6.40468143]
[1748810322563,19.73721183,155.96,155.95,12.81699306]
[1748810323270,19.73721183,155.96,155.95,6.40468143]
[1748810325182,148.9,155.98,155.95,6.40468143]
[1748810325362,19.73721183,155.97,155.95,12.81699306]
[1748810328686,148.9,155.98,155.95,12.81699306]
[1748810329966,168.63721183,155.98,155.95,12.81699306]
[1748810332298,148.9,155.98,155.95,12.81699306]
[1748810332592,168.63721183,155.98,155.95,12.81699306]
[1748810335886,148.9,155.98,155.95,12.81699306]
[1748810345678,12.62420565,155.97,155.95,6.40468143]
[1748810345883,12.62420565,155.97,155.95,12.81698313]
[1748810349203,161.52420565,155.98,155.95,12.81698313]
[1748810351913,12.62420565,155.97,155.95,6.40468143]
[1748810354110,12.62420565,155.96,155.95,6.40468143]
[1748810366225,12.62420565,155.97,155.95,6.40468143]
[1748810369911,12.62420565,155.96,155.95,6.40468143]
[1748810370431,12.62420565,155.97,155.95,6.40468143]
[1748810371725,161.52420565,155.98,155.95,12.81699146]
[1748810371939,148.9,155.97,155.95,12.81699146]
[1748810372314,12.62420565,155.96,155.95,6.40468143]
[1748810373138,39.14,156.0,155.95,6.40468143]
[1748810373339,12.62420565,155.97,155.95,6.40468143]
[1748810373518,12.62420565,155.96,155.95,6.40468143]
[1748810376041,12.62420565,155.97,155.95,6.40468143]
[1748810376337,26.0,156.01,155.95,6.40468143]
[1748810376338,12.62420565,155.99,155.95,12.81684439]
[1748810378137,200.66420565,156.0,155.95,12.81684439]
[1748810380214,148.9,156.0,155.95,25.44105004]
[1748810380420,148.9,156.0,155.97,12.62420565]
[1748810381127,148.9,156.0,155.98,12.62420565]
[1748810381334,33.24404458,156.03,155.99,12.62420565]
[1748810381648,33.24404458,156.03,156.01,12.62420565]
[1748810382345,33.24404458,156.03,156.02,6.40943468]
[1748810384948,33.24404458,156.03,156.02,19.03364033]
[1748810385148,12.62420565,156.07,156.02,19.03364033]
[1748810385334,12.62420565,156.07,156.03,12.62420565]
[1748810385949,12.62420565,156.07,156.02,19.03364033]
[1748810386445,4.86100528,156.08,156.02,19.03364033]
[1748810386756,12.62420565,156.06,156.02,19.03364033]
[1748810386938,12.62420565,156.07,156.02,19.03364033]
[1748810387954,12.62420565,156.06,156.02,19.03364033]
[1748810389452,12.62420565,156.06,156.02,6.40943468]
[1748810394348,12.62420565,156.05,156.02,6.40943468]
[1748810396169,12.62420565,156.06,156.02,6.40943468]
[1748810397951,148.9,156.07,156.02,6.40943468]
[1748810398462,12.62420565,156.06,156.02,6.40943468]
[1748810401653,148.9,156.07,156.02,6.40943468]
[1748810401961,161.52420565,156.07,156.02,35.05722704]
[1748810404261,148.9,156.07,156.02,35.05722704]
[1748810404431,161.52420565,156.07,156.02,35.05722704]
[1748810406756,12.62420565,156.06,156.02,22.43302139]
[1748810408738,161.52420565,156.07,156.02,28.64779236]
[1748810411472,148.9,156.07,156.03,12.62420565]
[1748810411674,161.52420565,156.07,156.02,35.05722704]
[1748810414970,148.9,156.07,156.03,12.62420565]
[1748810415163,148.9,156.07,156.04,6.40861317]
[1748810415558,161.52420565,156.07,156.04,6.40861317]
[1748810415956,148.9,156.07,156.04,19.03281882]
[1748810417070,148.9,156.07,156.04,6.40861317]
[1748810417456,148.9,156.07,156.04,12.62420565]
[1748810418754,148.9,156.07,156.03,12.62420565]
[1748810419562,150.4971,156.15,156.06,12.62420565]
[1748810419785,150.4971,156.15,156.05,33.7188]
[1748810419786,150.4971,156.15,156.1,12.62420565]
[1748810419951,163.12130565,156.15,156.1,12.62420565]
[1748810420155,150.4971,156.15,156.1,12.62420565]
[1748810420466,150.4971,156.15,156.07,67.86964886]
[1748810420770,12.62420565,156.11,156.07,49.22]
[1748810422050,12.62420565,156.11,156.08,6.40697078]
[1748810423770,12.62420565,156.12,156.08,6.40697078]
[1748810424361,12.62420565,156.1,156.08,6.40697078]
[1748810425258,150.4971,156.15,156.08,6.40697078]
[1748810425459,12.62420565,156.1,156.08,6.40697078]
[1748810432684,12.62420565,156.09,156.07,16.50726434]
[1748810432859,12.62420565,156.08,156.07,16.50726434]
[1748810433985,12.62420565,156.1,156.07,16.50726434]
[1748810440469,148.9,156.12,156.07,16.50726434]
[1748810440470,12.62420565,156.11,156.07,32.52571759]
[1748810440770,12.62420565,156.1,156.07,71.62571759]
[1748810445690,148.9,156.11,156.07,71.62571759]
[1748810445873,12.62420565,156.09,156.07,32.52571759]
[1748810447891,148.9,156.1,156.07,32.52571759]
[1748810448095,148.9,156.1,156.07,45.14992324]
[1748810448265,148.9,156.1,156.08,39.1]
[1748810448692,12.62420565,156.14,156.09,12.62420565]
[1748810449391,12.62420565,156.14,156.1,22.42152465]
[1748810450394,12.62420565,156.14,156.1,35.0457303]
[1748810450784,2.52913075,156.17,156.11,39.12]
[1748810451113,12.62420565,156.15,156.11,39.12]
[1748810451784,12.62420565,156.15,156.12,6.40532923]
[1748810454281,12.62420565,156.14,156.12,6.40532923]
[1748810456902,12.62420565,156.13,156.12,6.40532923]
[1748810459305,12.62420565,156.14,156.12,6.40532923]
[1748810460013,148.9,156.16,156.12,22.41865231]
[1748810460014,12.62420565,156.15,156.12,22.41865231]
[1748810460687,2.52913075,156.17,156.14,12.62420565]
[1748810460891,2.52913075,156.17,156.15,39.08]
[1748810461093,2.52913075,156.17,156.16,6.40368852]
[1748810467826,2.52913075,156.17,156.13,6.40491897]
[1748810467827,22.20408945,156.17,156.13,6.40491897]
[1748810467989,19.6749587,156.14,156.13,6.40491897]
[1748810472212,19.6749587,156.14,156.12,16.50521067]
[1748810472517,19.6749587,156.13,156.12,16.50521067]
[1748810473702,2.52913075,156.17,156.12,16.50521067]
[1748810473892,19.6749587,156.14,156.12,16.50521067]
[1748810475214,19.6749587,156.13,156.12,16.50521067]
[1748810475995,19.6749587,156.14,156.12,16.50521067]
[1748810479092,19.6749587,156.15,156.12,16.50521067]
[1748810481003,19.6749587,156.14,156.12,16.50521067]
[1748810484397,19.6749587,156.15,156.12,32.51853375]
[1748810484829,148.9,156.16,156.12,32.51853375]
[1748810485004,148.9,156.16,156.13,18.64964886]
[1748810485210,148.9,156.16,156.14,39.08]
[1748810486708,148.9,156.16,156.15,6.40409862]
[1748810492102,2.52913075,156.17,156.15,6.40409862]
[1748810492328,2.52913075,156.17,156.16,39.08]
[1748810494612,2.52913075,156.17,156.16,45.48368852]
[1748810496022,2.52913075,156.17,156.16,83.80829608]
[1748810497314,2.52913075,156.17,156.16,109.80829608]
[1748810498338,2.52913075,156.17,156.16,90.13333738]
[1748810498544,2.52913075,156.17,156.16,109.80829608]
[1748810503522,2.52913075,156.17,156.16,129.48325478]
[1748810505836,2.52913075,156.17,156.16,109.80829608]
[1748810508442,2.52913075,156.17,156.16,129.48325478]
[1748810510034,2.52913075,156.17,156.16,109.80829608]
[1748810510345,2.52913075,156.17,156.16,83.80829608]
[1748810511222,2.52913075,156.17,156.16,103.48325478]
[1748810511425,2.52913075,156.17,156.16,64.13333738]
[1748810511633,2.52913075,156.17,156.16,83.80829608]
[1748810512735,2.52913075,156.17,156.16,64.13333738]
[1748810512915,2.52913075,156.17,156.16,83.80829608]
[1748810519238,2.52913075,156.17,156.16,76.71660667]
[1748810519424,2.52913075,156.17,156.16,86.79660667]
[1748810520656,2.52913075,156.17,156.16,137.12968383]
[1748810522458,2.52913075,156.17,156.16,86.79660667]
[1748810523348,2.52913075,156.17,156.16,47.71660667]
[1748810523534,2.52913075,156.17,156.16,86.77660667]
[1748810523738,2.52913075,156.17,156.16,73.71660667]
[1748810523928,2.52913075,156.17,156.16,112.77660667]
[1748810524123,2.52913075,156.17,156.16,86.77660667]
[1748810524339,2.52913075,156.17,156.16,112.77660667]
[1748810524728,2.52913075,156.17,156.16,73.71660667]
[1748810524944,2.52913075,156.17,156.16,112.77660667]
[1748810525164,15.11240004,156.17,156.16,16.48368852]
[1748810525450,2.52913075,156.17,156.16,16.48368852]
[1748810526147,2.52913075,156.17,156.16,54.81091077]
[1748810526350,2.52913075,156.17,156.16,35.13333738]
[1748810528147,22.20670414,156.17,156.16,10.08]
[1748810528449,23.73590414,156.17,156.16,10.08]
[1748810528655,29.95360414,156.17,156.16,10.08]
[1748810531150,29.95360414,156.17,156.14,6.40413202]
[1748810531352,19.67757339,156.15,156.14,6.40413202]
[1748810532851,19.67757339,156.15,156.13,6.40491897]
[1748810533572,19.67757339,156.14,156.13,6.40491897]
[1748810534138,10.27603075,156.17,156.13,6.40491897]
[1748810534338,19.67757339,156.15,156.13,6.40491897]
[1748810539145,19.67757339,156.14,156.13,6.40491897]
[1748810539777,19.67757339,156.14,156.12,16.48523502]
[1748810539947,19.67757339,156.13,156.12,16.48523502]
[1748810542271,19.67757339,156.13,156.12,10.08]
[1748810543577,19.67757339,156.13,156.12,16.48532923]
[1748810544192,148.9,156.16,156.12,16.48532923]
[1748810544380,19.67757339,156.13,156.12,16.48532923]
[1748810548867,19.67757339,156.13,156.12,10.08]
[1748810549258,12.60089502,156.13,156.12,10.08]
[1748810550364,12.60089502,156.13,156.12,16.48532923]
[1748810551280,12.60089502,156.14,156.12,16.48532923]
[1748810553186,19.68567183,156.14,156.12,16.48532923]
[1748810554186,19.68567183,156.15,156.12,16.48532923]
[1748810555764,19.68567183,156.15,156.12,71.57865231]
[1748810556071,148.9,156.16,156.12,91.26432414]
[1748810560489,148.9,156.16,156.13,18.64964886]
[1748810560687,148.9,156.16,156.14,39.08]
[1748810562376,148.9,156.16,156.15,6.40409862]
[1748810563188,22.21480258,156.17,156.16,18.64964886]
[1748810563189,2.52913075,156.17,156.16,18.64964886]
[1748810563397,2.52913075,156.17,156.16,77.41532069]
[1748810564397,2.52913075,156.17,156.16,83.81900921]
[1748810564705,2.52913075,156.17,156.16,103.50468104]
[1748810567899,2.52913075,156.17,156.16,83.81900921]
[1748810568114,2.52913075,156.17,156.16,109.81900921]
[1748810568699,2.52913075,156.17,156.16,51.05333738]
[1748810568883,2.52913075,156.17,156.16,90.11333738]
[1748810569197,2.52913075,156.17,156.16,109.79900921]
[1748810569717,2.52913075,156.17,156.16,83.79900921]
[1748810571206,2.52913075,156.17,156.16,44.73900921]
[1748810571398,2.52913075,156.17,156.16,83.79900921]
[1748810586701,2.52913075,156.17,156.16,93.87900921]
[1748810589278,2.52913075,156.17,156.16,86.77716769]
[1748810592015,2.52913075,156.17,156.16,137.11248893]
[1748810593618,148.9,156.24,156.2,18.64964886]
[1748810593923,148.9,156.24,156.22,12.58383031]
[1748810595143,148.9,156.24,156.23,6.4008193]
[1748810597046,148.9,156.24,156.22,6.40122903]
[1748810603235,148.9,156.24,156.23,39.04]
[1748810603845,148.9,156.24,156.23,45.4408193]
[1748810604766,148.9,156.24,156.21,45.73751246]
[1748810604767,168.55353056,156.24,156.22,6.40110412]
[1748810605138,148.9,156.24,156.22,6.40110412]
[1748810606861,148.9,156.24,156.22,45.44110412]
[1748810612167,148.9,156.24,156.22,65.09463468]
[1748810612746,148.9,156.24,156.22,45.44110412]
[1748810614868,149.1233296,156.24,156.22,45.44110412]
[1748810622271,149.1233296,156.24,156.22,55.52110412]
[1748810622468,0.2233296,156.24,156.23,12.57951362]
[1748810623880,0.2233296,156.24,156.23,18.98033292]
[1748810628885,0.2233296,156.24,156.23,37.62998178]
[1748810650005,0.2233296,156.24,156.23,6.4008193]
[1748810650185,12.80284322,156.24,156.23,6.4008193]
[1748810653188,12.80284322,156.24,156.22,16.48109258]
[1748810656610,0.2233296,156.24,156.22,16.48109258]
[1748810664390,0.2233296,156.24,156.22,29.0606062]
[1748810665518,0.2233296,156.24,156.22,16.48109258]
[1748810675803,12.57951362,156.23,156.22,16.48109258]
[1748810675996,12.57951362,156.23,156.22,10.08]
[1748810676522,12.57951362,156.23,156.18,10.06]
[1748810676813,50.54138408,156.24,156.18,16.46286848]
[1748810676814,12.57951362,156.19,156.18,16.46286848]
[1748810677918,12.57951362,156.19,156.18,10.06]
[1748810678427,12.57951362,156.19,156.18,16.46286848]
[1748810678652,12.57951362,156.19,156.18,10.06]
[1748810678924,14.20881362,156.19,156.16,6.40330684]
[1748810679096,12.57951362,156.17,156.16,6.40330684]
[1748810680113,12.57951362,156.17,156.15,6.40409862]
[1748810682436,12.57951362,156.18,156.15,6.40409862]
[1748810683425,1.6293,156.19,156.15,22.41434517]
[1748810683426,14.20881362,156.19,156.15,22.41434517]
[1748810683629,14.20881362,156.19,156.15,34.99385879]
[1748810684598,12.57951362,156.19,156.15,34.99385879]
[1748810688315,148.9,156.21,156.17,12.57951362]
[1748810688518,148.9,156.21,156.18,12.57951362]
[1748810689624,148.9,156.21,156.19,16.46245854]
[1748810690516,149.1233296,156.21,156.19,16.46245854]
[1748810691908,161.70284322,156.21,156.19,16.46245854]
[1748810693428,149.1233296,156.21,156.19,16.46245854]
[1748810694323,12.80284322,156.21,156.19,16.46245854]
[1748810694824,12.57951362,156.2,156.15,10.06]
[1748810695003,0.2233296,156.21,156.15,10.06]
[1748810695004,12.57951362,156.18,156.15,10.06]
[1748810695728,12.57951362,156.19,156.16,6.40368852]
[1748810697333,12.57951362,156.2,156.16,6.40368852]
[1748810697540,0.2233296,156.21,156.17,12.57951362]
[1748810699429,0.2233296,156.21,156.2,26.0]
[1748810700915,12.80284322,156.21,156.2,26.0]
[1748810701625,12.80284322,156.21,156.19,6.40225498]
[1748810702009,0.2233296,156.21,156.19,6.40225498]
[1748810702638,0.2233296,156.21,156.19,58.0017686]
[1748810703523,0.2233296,156.21,156.19,45.42225498]
[1748810708048,0.2233296,156.21,156.18,10.06]
[1748810708049,12.57951362,156.2,156.18,10.06]
[1748810708224,12.57951362,156.19,156.18,10.06]
[1748810708418,12.57951362,156.19,156.18,36.06]
[1748810715843,12.57951362,156.19,156.14,10.06]
[1748810716040,12.57951362,156.15,156.14,16.46421231]
[1748810717043,12.57951362,156.15,156.14,10.06]
[1748810717240,19.68467389,156.15,156.14,10.06]
[1748810717426,19.68467389,156.15,156.14,26.0]
[1748810720744,19.90800349,156.15,156.14,26.0]
[1748810720956,148.9,156.14,156.13,26.0]
[1748810721279,148.9,156.13,156.1,10.06]
[1748810721560,19.68467389,156.11,156.1,36.06]
[1748810721753,19.68467389,156.11,156.1,42.4661499]
[1748810722136,148.9,156.13,156.12,26.0]